[Event "Early-Titled-Tuesday-Blitz-January-23-2024"]
[Site "Chess.com"]
[Date "2024.01.23"]
[Round "4"]
[White "GoValya"]
[Black "CarlosjPineror"]
[Result "0-1"]
[WhiteElo "2298"]
[BlackElo "2606"]
[TimeControl "180+1"]
[EndTime "8:41:40 PST"]
[Termination "CarlosjPineror won by checkmate"]

1. d4 {[%clk 0:03:00.9]} 1... Nf6 {[%clk 0:02:48.5]} 2. g3 {[%clk 0:03:00.5]}
2... g6 {[%clk 0:02:46.2]} 3. Bg2 {[%clk 0:03:00.9]} 3... Bg7 {[%clk 0:02:47.1]}
4. c4 {[%clk 0:03:01.3]} 4... O-O {[%clk 0:02:48]} 5. Nc3 {[%clk 0:03:01.5]}
5... d6 {[%clk 0:02:48.4]} 6. Nf3 {[%clk 0:03:01.9]} 6... c6 {[%clk 0:02:45.7]}
7. e4 {[%clk 0:03:01.6]} 7... Nbd7 {[%clk 0:02:44.5]} 8. O-O {[%clk 0:03:01.8]}
8... e5 {[%clk 0:02:45]} 9. h3 {[%clk 0:03:01.6]} 9... Re8 {[%clk 0:02:42.9]}
10. Re1 {[%clk 0:03:01.6]} 10... a5 {[%clk 0:02:42.5]} 11. Be3 {[%clk
0:02:56.1]} 11... Qc7 {[%clk 0:02:33]} 12. Qc2 {[%clk 0:02:52.7]} 12... h6
{[%clk 0:02:16.4]} 13. a3 {[%clk 0:02:49.5]} 13... g5 {[%clk 0:02:08.8]} 14. b4
{[%clk 0:02:47.3]} 14... Nh7 {[%clk 0:01:50.2]} 15. c5 {[%clk 0:02:39]} 15...
axb4 {[%clk 0:01:43.3]} 16. axb4 {[%clk 0:02:38.9]} 16... Rxa1 {[%clk
0:01:43.2]} 17. Rxa1 {[%clk 0:02:38.5]} 17... exd4 {[%clk 0:01:43.8]} 18. Bxd4
{[%clk 0:02:31.6]} 18... dxc5 {[%clk 0:01:44.4]} 19. bxc5 {[%clk 0:02:21.3]}
19... Bxd4 {[%clk 0:01:41.5]} 20. Nxd4 {[%clk 0:02:21.5]} 20... Nxc5 {[%clk
0:01:41.6]} 21. Nf5 {[%clk 0:02:21.7]} 21... Bxf5 {[%clk 0:01:40.5]} 22. exf5
{[%clk 0:02:22.2]} 22... Nf6 {[%clk 0:01:39.1]} 23. g4 {[%clk 0:02:07.8]} 23...
Qe5 {[%clk 0:01:35.6]} 24. Rc1 {[%clk 0:02:04.6]} 24... Nfd7 {[%clk 0:01:28.9]}
25. Nd1 {[%clk 0:01:56.2]} 25... Qe1+ {[%clk 0:01:22.7]} 26. Kh2 {[%clk
0:01:56.5]} 26... Qe2 {[%clk 0:01:19.3]} 27. Ne3 {[%clk 0:01:38.6]} 27... Qxc2
{[%clk 0:01:18.9]} 28. Rxc2 {[%clk 0:01:39.5]} 28... Kg7 {[%clk 0:01:18.6]} 29.
Nc4 {[%clk 0:01:35.5]} 29... Rb8 {[%clk 0:01:10.6]} 30. Nd6 {[%clk 0:01:31.9]}
30... Kf6 {[%clk 0:01:02.6]} 31. Re2 {[%clk 0:01:31.5]} 31... Kg7 {[%clk
0:00:54.3]} 32. Kg3 {[%clk 0:01:28.5]} 32... Ra8 {[%clk 0:00:49.3]} 33. Re7
{[%clk 0:01:18.8]} 33... Kf8 {[%clk 0:00:47.5]} 34. Rxf7+ {[%clk 0:01:16.5]}
34... Kg8 {[%clk 0:00:46.7]} 35. Re7 {[%clk 0:01:03.7]} 35... Ra3+ {[%clk
0:00:46.5]} 36. Kh2 {[%clk 0:01:01.7]} 36... Ra2 {[%clk 0:00:45.3]} 37. Nxb7
{[%clk 0:00:54.1]} 37... Rxf2 {[%clk 0:00:44.9]} 38. Nxc5 {[%clk 0:00:51.2]}
38... Nxc5 {[%clk 0:00:45.8]} 39. Kg3 {[%clk 0:00:51.8]} 39... Rc2 {[%clk
0:00:44.7]} 40. Bxc6 {[%clk 0:00:48.9]} 40... Rc3+ {[%clk 0:00:45.3]} 41. Bf3
{[%clk 0:00:42.9]} 41... Kf8 {[%clk 0:00:27.8]} 42. Rc7 {[%clk 0:00:42.7]} 42...
Ne4+ {[%clk 0:00:27.2]} 43. Kg2 {[%clk 0:00:42.4]} 43... Rxc7 {[%clk 0:00:28.1]}
44. Bxe4 {[%clk 0:00:42.9]} 44... Ke7 {[%clk 0:00:28.8]} 45. Kf3 {[%clk
0:00:43.3]} 45... Kf6 {[%clk 0:00:29.5]} 46. Bd5 {[%clk 0:00:43]} 46... Ke5
{[%clk 0:00:30]} 47. Be6 {[%clk 0:00:43.2]} 47... Rc3+ {[%clk 0:00:29.9]} 48.
Kg2 {[%clk 0:00:43.4]} 48... Ra3 {[%clk 0:00:26.5]} 49. Kh2 {[%clk 0:00:37.7]}
49... Rc3 {[%clk 0:00:18]} 50. Kg2 {[%clk 0:00:36.5]} 50... Rc6 {[%clk
0:00:18.1]} 51. Kf3 {[%clk 0:00:35.1]} 51... Kd4 {[%clk 0:00:17.7]} 52. Bd7
{[%clk 0:00:33.6]} 52... Rd6 {[%clk 0:00:17.4]} 53. Be6 {[%clk 0:00:33.6]} 53...
Rb6 {[%clk 0:00:17.6]} 54. Ke2 {[%clk 0:00:31.4]} 54... Ke4 {[%clk 0:00:16.6]}
55. Kf2 {[%clk 0:00:31]} 55... Kf4 {[%clk 0:00:17.1]} 56. Kg2 {[%clk 0:00:30.9]}
56... Rb2+ {[%clk 0:00:17.2]} 57. Kf1 {[%clk 0:00:29.1]} 57... Kg3 {[%clk
0:00:16.4]} 58. f6 {[%clk 0:00:29]} 58... Rb8 {[%clk 0:00:17]} 59. f7 {[%clk
0:00:28.7]} 59... Rf8 {[%clk 0:00:17.5]} 60. Ke2 {[%clk 0:00:26.3]} 60... Kxh3
{[%clk 0:00:17.9]} 61. Kf3 {[%clk 0:00:26.8]} 61... Kh4 {[%clk 0:00:18.3]} 62.
Kg2 {[%clk 0:00:23.6]} 62... h5 {[%clk 0:00:16.7]} 63. gxh5 {[%clk 0:00:23.9]}
63... Kxh5 {[%clk 0:00:17.3]} 64. Kg3 {[%clk 0:00:24.5]} 64... Kg6 {[%clk
0:00:17.6]} 65. Kg4 {[%clk 0:00:25]} 65... Kf6 {[%clk 0:00:18.3]} 66. Bc4 {[%clk
0:00:24.7]} 66... Rc8 {[%clk 0:00:18]} 67. Bd5 {[%clk 0:00:24.4]} 67... Rb8
{[%clk 0:00:18.7]} 68. Bc4 {[%clk 0:00:22.9]} 68... Ra8 {[%clk 0:00:18.3]} 69.
Bd5 {[%clk 0:00:22.2]} 69... Ra4+ {[%clk 0:00:18.8]} 70. Kg3 {[%clk 0:00:22.3]}
70... Kg7 {[%clk 0:00:18.6]} 71. Bc6 {[%clk 0:00:20.9]} 71... Ra3+ {[%clk
0:00:14.9]} 72. Kg4 {[%clk 0:00:20.7]} 72... Kxf7 {[%clk 0:00:15.4]} 73. Kxg5
{[%clk 0:00:20.9]} 73... Ra5+ {[%clk 0:00:15.2]} 74. Kf4 {[%clk 0:00:20.6]}
74... Kf6 {[%clk 0:00:15.6]} 75. Be4 {[%clk 0:00:20.8]} 75... Ra4 {[%clk
0:00:15.8]} 76. Ke3 {[%clk 0:00:21.2]} 76... Ke5 {[%clk 0:00:16.5]} 77. Bd3
{[%clk 0:00:20.5]} 77... Ra3 {[%clk 0:00:17.1]} 78. Ke2 {[%clk 0:00:20.7]} 78...
Kd4 {[%clk 0:00:17.6]} 79. Bg6 {[%clk 0:00:19.8]} 79... Ra6 {[%clk 0:00:17.2]}
80. Bf5 {[%clk 0:00:19.1]} 80... Rh6 {[%clk 0:00:17.3]} 81. Bg4 {[%clk
0:00:18.8]} 81... Rf6 {[%clk 0:00:16.3]} 82. Bf3 {[%clk 0:00:17.7]} 82... Re6+
{[%clk 0:00:16.6]} 83. Kd2 {[%clk 0:00:17.5]} 83... Rf6 {[%clk 0:00:15.7]} 84.
Ke2 {[%clk 0:00:17.3]} 84... Re6+ {[%clk 0:00:15.9]} 85. Kd2 {[%clk 0:00:17.7]}
85... Ra6 {[%clk 0:00:16.6]} 86. Ke2 {[%clk 0:00:17]} 86... Ra2+ {[%clk
0:00:17]} 87. Kf1 {[%clk 0:00:14.5]} 87... Ke3 {[%clk 0:00:16.6]} 88. Bd5 {[%clk
0:00:10.6]} 88... Ra5 {[%clk 0:00:15.9]} 89. Bc6 {[%clk 0:00:09.6]} 89... Rc5
{[%clk 0:00:15.7]} 90. Bb7 {[%clk 0:00:09.9]} 90... Rc7 {[%clk 0:00:15.5]} 91.
Bd5 {[%clk 0:00:09.8]} 91... Rd7 {[%clk 0:00:15.5]} 92. Bc6 {[%clk 0:00:10.1]}
92... Rf7+ {[%clk 0:00:15.9]} 93. Kg2 {[%clk 0:00:09.9]} 93... Rg7+ {[%clk
0:00:15.6]} 94. Kf1 {[%clk 0:00:10.3]} 94... Rg5 {[%clk 0:00:14.7]} 95. Bb7
{[%clk 0:00:08.9]} 95... Rc5 {[%clk 0:00:14.8]} 96. Kg2 {[%clk 0:00:06.9]} 96...
Rg5+ {[%clk 0:00:14.2]} 97. Kf1 {[%clk 0:00:07]} 97... Rg3 {[%clk 0:00:14.7]}
98. Bc6 {[%clk 0:00:06.5]} 98... Rg6 {[%clk 0:00:12.8]} 99. Bb7 {[%clk
0:00:06.8]} 99... Rb6 {[%clk 0:00:12.8]} 100. Ba8 {[%clk 0:00:06.9]} 100... Rb2
{[%clk 0:00:13.2]} 101. Bc6 {[%clk 0:00:06.2]} 101... Rf2+ {[%clk 0:00:13.6]}
102. Kg1 {[%clk 0:00:05.9]} 102... Rc2 {[%clk 0:00:12.3]} 103. Bd5 {[%clk
0:00:05.8]} 103... Kd4 {[%clk 0:00:11.8]} 104. Bf3 {[%clk 0:00:05.2]} 104... Ke3
{[%clk 0:00:12]} 105. Bd5 {[%clk 0:00:05.2]} 105... Rf2 {[%clk 0:00:11.6]} 106.
Bc6 {[%clk 0:00:04.8]} 106... Rf6 {[%clk 0:00:11.6]} 107. Bd5 {[%clk 0:00:04.9]}
107... Kf4 {[%clk 0:00:12.1]} 108. Bg2 {[%clk 0:00:04.5]} 108... Kg3 {[%clk
0:00:12.2]} 109. Bd5 {[%clk 0:00:03.9]} 109... Rf2 {[%clk 0:00:12.6]} 110. Bc6
{[%clk 0:00:03.6]} 110... Rc2 {[%clk 0:00:12.5]} 111. Bb5 {[%clk 0:00:03.7]}
111... Rc1+ {[%clk 0:00:11.9]} 112. Bf1 {[%clk 0:00:03.9]} 112... Ra1 {[%clk
0:00:12.6]} 113. Kh1 {[%clk 0:00:02.9]} 113... Rxf1# {[%clk 0:00:13.1]} 0-1

[Event "Early-Titled-Tuesday-Blitz-January-23-2024"]
[Site "Chess.com"]
[Date "2024.01.23"]
[Round "5"]
[White "RichardLeyvaP"]
[Black "Felix-Rose"]
[Result "1-0"]
[WhiteElo "2498"]
[BlackElo "2291"]
[TimeControl "180+1"]
[EndTime "8:49:58 PST"]
[Termination "RichardLeyvaP won by resignation"]

1. e4 {[%clk 0:02:59.5]} 1... e5 {[%clk 0:02:59.1]} 2. d4 {[%clk 0:02:58.9]}
2... exd4 {[%clk 0:02:59.2]} 3. Qxd4 {[%clk 0:02:59.2]} 3... Nc6 {[%clk
0:02:59.8]} 4. Qe3 {[%clk 0:02:59.5]} 4... Nf6 {[%clk 0:03:00]} 5. Nc3 {[%clk
0:02:59.8]} 5... Bb4 {[%clk 0:02:59.8]} 6. Bd2 {[%clk 0:03:00.1]} 6... O-O
{[%clk 0:02:59.1]} 7. O-O-O {[%clk 0:03:00.2]} 7... Re8 {[%clk 0:02:59.4]} 8.
Bc4 {[%clk 0:02:59.2]} 8... Bxc3 {[%clk 0:02:00.9]} 9. Bxc3 {[%clk 0:02:57.2]}
9... Nxe4 {[%clk 0:01:57.1]} 10. Qf4 {[%clk 0:02:56.4]} 10... Qf6 {[%clk
0:01:41.4]} 1-0

[Event "Early-Titled-Tuesday-Blitz-January-23-2024"]
[Site "Chess.com"]
[Date "2024.01.23"]
[Round "5"]
[White "MVM2008"]
[Black "Heinza9"]
[Result "1-0"]
[WhiteElo "2551"]
[BlackElo "2309"]
[TimeControl "180+1"]
[EndTime "8:50:01 PST"]
[Termination "MVM2008 won by checkmate"]

1. e4 {[%clk 0:03:00.9]} 1... e5 {[%clk 0:02:56.4]} 2. Nf3 {[%clk 0:03:00.6]}
2... Nc6 {[%clk 0:02:56]} 3. Nc3 {[%clk 0:03:00.9]} 3... Nf6 {[%clk 0:02:55.7]}
4. Nd5 {[%clk 0:03:01]} 4... Nxe4 {[%clk 0:02:52.4]} 5. Qe2 {[%clk 0:02:59.3]}
5... Nf6 {[%clk 0:02:48.9]} 6. Nxe5 {[%clk 0:02:58.3]} 6... Be7 {[%clk
0:02:40.2]} 7. Nxf6+ {[%clk 0:02:44.3]} 7... gxf6 {[%clk 0:02:39.7]} 8. Nxf7
{[%clk 0:02:25]} 8... Kxf7 {[%clk 0:02:34.6]} 9. Qh5+ {[%clk 0:02:23.8]} 9...
Kg8 {[%clk 0:02:26.7]} 10. Bc4+ {[%clk 0:02:20.9]} 10... Kg7 {[%clk 0:02:11.1]}
11. Qf7+ {[%clk 0:02:18.9]} 11... Kh6 {[%clk 0:02:08.6]} 12. d4# {[%clk
0:02:18.4]} 1-0

[Event "Early-Titled-Tuesday-Blitz-January-23-2024"]
[Site "Chess.com"]
[Date "2024.01.23"]
[Round "5"]
[White "Nemegejas"]
[Black "LileKoridze"]
[Result "1-0"]
[WhiteElo "2883"]
[BlackElo "2309"]
[TimeControl "180+1"]
[EndTime "8:50:21 PST"]
[Termination "Nemegejas won by resignation"]

1. d4 {[%clk 0:03:00.9]} 1... Nf6 {[%clk 0:02:59.2]} 2. c4 {[%clk 0:03:01.4]}
2... e6 {[%clk 0:02:58]} 3. Nc3 {[%clk 0:03:01.5]} 3... Bb4 {[%clk 0:02:57.5]}
4. Bg5 {[%clk 0:02:57.9]} 4... O-O {[%clk 0:02:54.3]} 5. e3 {[%clk 0:02:55.2]}
5... d5 {[%clk 0:02:53.9]} 6. Nf3 {[%clk 0:02:54.7]} 6... Nbd7 {[%clk
0:02:51.9]} 7. Rc1 {[%clk 0:02:52.6]} 7... c6 {[%clk 0:02:51.7]} 8. Bd3 {[%clk
0:02:48.6]} 8... h6 {[%clk 0:02:50.8]} 9. Bh4 {[%clk 0:02:48.3]} 9... b6 {[%clk
0:02:48]} 10. O-O {[%clk 0:02:39.8]} 10... Bb7 {[%clk 0:02:47.1]} 11. Ne5 {[%clk
0:02:32.5]} 11... Be7 {[%clk 0:02:45.9]} 12. f4 {[%clk 0:02:32]} 12... Ne4
{[%clk 0:02:43.7]} 13. Bxe7 {[%clk 0:02:30.4]} 13... Qxe7 {[%clk 0:02:43.5]} 14.
Nxe4 {[%clk 0:02:28.9]} 14... dxe4 {[%clk 0:02:43.5]} 15. Bxe4 {[%clk
0:02:29.8]} 15... Rac8 {[%clk 0:02:41.7]} 16. c5 {[%clk 0:02:27]} 16... bxc5
{[%clk 0:02:41.4]} 17. Nxd7 {[%clk 0:02:25.5]} 17... Qxd7 {[%clk 0:02:41.6]} 18.
Rxc5 {[%clk 0:02:26.1]} 18... Rfd8 {[%clk 0:02:41.2]} 19. Qc2 {[%clk 0:02:25.4]}
19... Qe7 {[%clk 0:02:39.8]} 20. Rc1 {[%clk 0:02:25.1]} 20... Rd6 {[%clk
0:02:37.8]} 21. b4 {[%clk 0:02:24.5]} 21... Rcd8 {[%clk 0:02:35.7]} 22. a3
{[%clk 0:02:21.6]} 22... f6 {[%clk 0:02:28.3]} 23. Bxc6 {[%clk 0:02:08.4]} 1-0

[Event "Early-Titled-Tuesday-Blitz-January-23-2024"]
[Site "Chess.com"]
[Date "2024.01.23"]
[Round "5"]
[White "Arystanner"]
[Black "Shahdad2007"]
[Result "1-0"]
[WhiteElo "2786"]
[BlackElo "2459"]
[TimeControl "180+1"]
[EndTime "8:50:22 PST"]
[Termination "Arystanner won by resignation"]

1. e4 {[%clk 0:02:56.1]} 1... c5 {[%clk 0:02:58.8]} 2. Nf3 {[%clk 0:02:56.3]}
2... e6 {[%clk 0:02:58.9]} 3. c3 {[%clk 0:02:56.3]} 3... d5 {[%clk 0:02:57.6]}
4. e5 {[%clk 0:02:55.3]} 4... d4 {[%clk 0:02:56.8]} 5. d3 {[%clk 0:02:55.3]}
5... Nc6 {[%clk 0:02:56.4]} 6. g3 {[%clk 0:02:52.7]} 6... Nge7 {[%clk
0:02:55.3]} 7. Bg2 {[%clk 0:02:52.8]} 7... Ng6 {[%clk 0:02:50.5]} 8. Qe2 {[%clk
0:02:53]} 8... Be7 {[%clk 0:02:49.1]} 9. O-O {[%clk 0:02:53.1]} 9... O-O {[%clk
0:02:47.2]} 10. h4 {[%clk 0:02:50.7]} 10... h5 {[%clk 0:02:44.9]} 11. Re1 {[%clk
0:02:49]} 11... Rb8 {[%clk 0:02:36.7]} 12. Bg5 {[%clk 0:02:41.9]} 12... b5
{[%clk 0:02:04.1]} 13. Bxe7 {[%clk 0:02:41.7]} 13... Ngxe7 {[%clk 0:02:04.2]}
14. Ng5 {[%clk 0:02:42.1]} 14... g6 {[%clk 0:02:04.5]} 15. Nd2 {[%clk
0:02:42.5]} 15... dxc3 {[%clk 0:02:03.5]} 16. bxc3 {[%clk 0:02:42.3]} 16... Bb7
{[%clk 0:02:03.1]} 17. Nde4 {[%clk 0:02:42]} 17... Kg7 {[%clk 0:01:58.4]} 18.
Nxc5 {[%clk 0:02:35.6]} 18... Ba8 {[%clk 0:01:56.8]} 19. Ncxe6+ {[%clk
0:02:35.5]} 1-0

[Event "Early-Titled-Tuesday-Blitz-January-23-2024"]
[Site "Chess.com"]
[Date "2024.01.23"]
[Round "5"]
[White "Chessdreamer2020"]
[Black "Nekoo04"]
[Result "1-0"]
[WhiteElo "2548"]
[BlackElo "2360"]
[TimeControl "180+1"]
[EndTime "8:50:23 PST"]
[Termination "Chessdreamer2020 won by resignation"]

1. e4 {[%clk 0:02:59.3]} 1... c5 {[%clk 0:02:59.7]} 2. Nf3 {[%clk 0:02:59.5]}
2... d6 {[%clk 0:02:59.8]} 3. d4 {[%clk 0:02:58.7]} 3... cxd4 {[%clk 0:03:00.7]}
4. Qxd4 {[%clk 0:02:59.6]} 4... Nf6 {[%clk 0:02:59.7]} 5. Be2 {[%clk 0:02:58.9]}
5... Nc6 {[%clk 0:02:58.4]} 6. Qe3 {[%clk 0:02:59.5]} 6... Bg4 {[%clk
0:02:56.4]} 7. O-O {[%clk 0:02:59.2]} 7... g6 {[%clk 0:02:56]} 8. Nc3 {[%clk
0:02:58.2]} 8... Bg7 {[%clk 0:02:55.9]} 9. Nd5 {[%clk 0:02:56.1]} 9... O-O
{[%clk 0:02:46.6]} 10. c3 {[%clk 0:02:56.4]} 10... Qa5 {[%clk 0:02:20.1]} 11.
Nxf6+ {[%clk 0:02:49.8]} 11... Bxf6 {[%clk 0:02:18.7]} 12. Qf4 {[%clk
0:02:50.2]} 12... Bxf3 {[%clk 0:02:14.3]} 13. Qxf3 {[%clk 0:02:46.4]} 13... b5
{[%clk 0:02:05.9]} 14. Bh6 {[%clk 0:02:45.3]} 14... Rfc8 {[%clk 0:02:02.1]} 15.
a3 {[%clk 0:02:45.5]} 15... Ne5 {[%clk 0:02:00.1]} 16. Qh3 {[%clk 0:02:45]}
16... Nc4 {[%clk 0:01:59.3]} 17. Rab1 {[%clk 0:02:34.5]} 17... Nd2 {[%clk
0:01:58.7]} 18. Bxd2 {[%clk 0:02:34.2]} 1-0

[Event "Early-Titled-Tuesday-Blitz-January-23-2024"]
[Site "Chess.com"]
[Date "2024.01.23"]
[Round "5"]
[White "rikchessmx"]
[Black "PawnEatingZombie"]
[Result "1-0"]
[WhiteElo "2376"]
[BlackElo "2105"]
[TimeControl "180+1"]
[EndTime "8:50:27 PST"]
[Termination "rikchessmx won by resignation"]

1. e4 {[%clk 0:03:00.9]} 1... e6 {[%clk 0:02:59.5]} 2. d4 {[%clk 0:03:00.7]}
2... d5 {[%clk 0:03:00]} 3. Nc3 {[%clk 0:03:01.3]} 3... Nf6 {[%clk 0:02:59.3]}
4. Bg5 {[%clk 0:02:59.4]} 4... dxe4 {[%clk 0:02:55.6]} 5. Nxe4 {[%clk
0:02:58.8]} 5... Be7 {[%clk 0:02:56]} 6. Bxf6 {[%clk 0:02:58.4]} 6... Bxf6
{[%clk 0:02:56.6]} 7. Nf3 {[%clk 0:02:58.7]} 7... O-O {[%clk 0:02:55.4]} 8. Bd3
{[%clk 0:02:58.8]} 8... Nd7 {[%clk 0:02:38.7]} 9. Qe2 {[%clk 0:02:58]} 9... b6
{[%clk 0:02:34.8]} 10. g4 {[%clk 0:02:56.2]} 10... Bb7 {[%clk 0:02:34]} 11. g5
{[%clk 0:02:56.2]} 11... Be7 {[%clk 0:02:34.2]} 12. h4 {[%clk 0:02:53.9]} 12...
c5 {[%clk 0:02:32.4]} 13. O-O-O {[%clk 0:02:52.2]} 13... Qc7 {[%clk 0:02:29.6]}
14. Rhg1 {[%clk 0:02:47.9]} 14... Rac8 {[%clk 0:02:26.4]} 15. dxc5 {[%clk
0:02:46.4]} 15... Nxc5 {[%clk 0:02:09]} 16. Nf6+ {[%clk 0:02:45.7]} 16... Kh8
{[%clk 0:02:08.1]} 17. Bxh7 {[%clk 0:02:39.6]} 17... Nb3+ {[%clk 0:01:48.2]} 18.
axb3 {[%clk 0:02:34.1]} 18... Bxf3 {[%clk 0:01:48.1]} 19. Qxf3 {[%clk
0:02:33.1]} 19... Qxc2+ {[%clk 0:01:47.1]} 20. Bxc2 {[%clk 0:02:31.7]} 1-0

[Event "Early-Titled-Tuesday-Blitz-January-23-2024"]
[Site "Chess.com"]
[Date "2024.01.23"]
[Round "5"]
[White "NowInChess"]
[Black "Horokoskii"]
[Result "1-0"]
[WhiteElo "2282"]
[BlackElo "2067"]
[TimeControl "180+1"]
[EndTime "8:50:27 PST"]
[Termination "NowInChess won by resignation"]

1. e4 {[%clk 0:03:00.9]} 1... c5 {[%clk 0:02:55]} 2. d3 {[%clk 0:03:00.9]} 2...
d6 {[%clk 0:02:51.9]} 3. g3 {[%clk 0:03:01]} 3... Nf6 {[%clk 0:02:47.4]} 4. Bg2
{[%clk 0:03:01.1]} 4... e6 {[%clk 0:02:41.1]} 5. f4 {[%clk 0:03:01.1]} 5... Nbd7
{[%clk 0:02:37.5]} 6. Nf3 {[%clk 0:03:00.6]} 6... Be7 {[%clk 0:02:33.4]} 7. O-O
{[%clk 0:03:00]} 7... O-O {[%clk 0:02:31.9]} 8. Nc3 {[%clk 0:02:59.8]} 8... Rb8
{[%clk 0:02:22.7]} 9. a4 {[%clk 0:02:59.3]} 9... b6 {[%clk 0:02:20.4]} 10. h3
{[%clk 0:02:49.1]} 10... Bb7 {[%clk 0:02:07]} 11. Be3 {[%clk 0:02:47.8]} 11...
Qc7 {[%clk 0:01:54.9]} 12. Nb5 {[%clk 0:02:38.9]} 12... Qd8 {[%clk 0:01:46.8]}
13. Nxa7 {[%clk 0:02:38.9]} 13... Bc6 {[%clk 0:01:40.7]} 14. Nxc6 {[%clk
0:02:38.1]} 1-0

[Event "Early-Titled-Tuesday-Blitz-January-23-2024"]
[Site "Chess.com"]
[Date "2024.01.23"]
[Round "5"]
[White "Let_it_be_1"]
[Black "Yaacovn"]
[Result "0-1"]
[WhiteElo "2582"]
[BlackElo "2777"]
[TimeControl "180+1"]
[EndTime "8:50:36 PST"]
[Termination "Yaacovn won by resignation"]

1. e4 {[%clk 0:02:54.3]} 1... c6 {[%clk 0:02:59.1]} 2. d4 {[%clk 0:02:53.4]}
2... d5 {[%clk 0:03:00]} 3. Nd2 {[%clk 0:02:52.5]} 3... dxe4 {[%clk 0:03:00.2]}
4. Nxe4 {[%clk 0:02:53.4]} 4... Nf6 {[%clk 0:03:00.7]} 5. Nxf6+ {[%clk
0:02:53.6]} 5... gxf6 {[%clk 0:03:01.6]} 6. Qd3 {[%clk 0:02:52.5]} 6... Qd5
{[%clk 0:03:01.4]} 7. c4 {[%clk 0:02:49.5]} 7... Qf5 {[%clk 0:03:00.5]} 8. Nf3
{[%clk 0:02:45.5]} 8... Na6 {[%clk 0:02:59.5]} 9. Qb3 {[%clk 0:02:43.7]} 9... e5
{[%clk 0:02:57]} 10. dxe5 {[%clk 0:02:34.8]} 10... Nb4 {[%clk 0:02:56.5]} 11.
Kd1 {[%clk 0:02:20]} 11... Be6 {[%clk 0:02:47.7]} 12. Bd2 {[%clk 0:02:20.2]}
12... O-O-O {[%clk 0:02:46.6]} 13. a3 {[%clk 0:02:04]} 13... Nd3 {[%clk
0:02:46.2]} 14. Bxd3 {[%clk 0:02:03.2]} 14... Rxd3 {[%clk 0:02:45.5]} 15. Qa4
{[%clk 0:01:58.2]} 15... Bh6 {[%clk 0:02:39.9]} 16. Qxa7 {[%clk 0:01:53.2]}
16... Rhd8 {[%clk 0:02:38.7]} 17. Qa8+ {[%clk 0:01:49.1]} 17... Kc7 {[%clk
0:02:38.3]} 18. Qa5+ {[%clk 0:01:48.7]} 18... Kb8 {[%clk 0:02:38]} 0-1

[Event "Early-Titled-Tuesday-Blitz-January-23-2024"]
[Site "Chess.com"]
[Date "2024.01.23"]
[Round "5"]
[White "tomesao"]
[Black "eagleclaw07"]
[Result "0-1"]
[WhiteElo "2496"]
[BlackElo "2637"]
[TimeControl "180+1"]
[EndTime "8:50:40 PST"]
[Termination "eagleclaw07 won by resignation"]

1. d4 {[%clk 0:03:00.9]} 1... d5 {[%clk 0:02:58.8]} 2. Nf3 {[%clk 0:03:00.6]}
2... Nf6 {[%clk 0:02:58.7]} 3. Bf4 {[%clk 0:03:01.1]} 3... e6 {[%clk 0:02:58.5]}
4. e3 {[%clk 0:03:01.2]} 4... Bd6 {[%clk 0:02:58.7]} 5. Nbd2 {[%clk 0:03:00.6]}
5... O-O {[%clk 0:02:54.7]} 6. c3 {[%clk 0:02:59.8]} 6... Bxf4 {[%clk
0:02:52.4]} 7. exf4 {[%clk 0:02:59.3]} 7... b6 {[%clk 0:02:52.1]} 8. Ne5 {[%clk
0:02:55.8]} 8... c5 {[%clk 0:02:48.9]} 9. Ndf3 {[%clk 0:02:51.6]} 9... Ba6
{[%clk 0:02:43.4]} 10. Bxa6 {[%clk 0:02:50.7]} 10... Nxa6 {[%clk 0:02:43.5]} 11.
Qd3 {[%clk 0:02:49.6]} 11... Nc7 {[%clk 0:02:42.2]} 12. h4 {[%clk 0:02:46.3]}
12... Nce8 {[%clk 0:02:39.9]} 13. h5 {[%clk 0:02:43.8]} 13... h6 {[%clk
0:02:38.5]} 14. O-O-O {[%clk 0:02:41]} 14... c4 {[%clk 0:02:28.6]} 15. Qc2
{[%clk 0:02:36.3]} 15... Ne4 {[%clk 0:02:23]} 16. g4 {[%clk 0:02:34.8]} 16...
Qf6 {[%clk 0:02:17.2]} 17. g5 {[%clk 0:02:22.4]} 17... Qxf4+ {[%clk 0:02:17]}
18. Kb1 {[%clk 0:02:22.3]} 18... Nxg5 {[%clk 0:02:11.5]} 19. Rh4 {[%clk
0:02:13.4]} 19... Qf6 {[%clk 0:02:06.4]} 20. Nd7 {[%clk 0:02:13]} 20... Qxf3
{[%clk 0:02:05.7]} 21. Nxf8 {[%clk 0:02:12]} 21... Kxf8 {[%clk 0:02:05]} 0-1

[Event "Early-Titled-Tuesday-Blitz-January-23-2024"]
[Site "Chess.com"]
[Date "2024.01.23"]
[Round "5"]
[White "Indianlad"]
[Black "Jospem"]
[Result "1/2-1/2"]
[WhiteElo "2994"]
[BlackElo "3102"]
[TimeControl "180+1"]
[EndTime "8:50:51 PST"]
[Termination "Game drawn by repetition"]

1. Nf3 {[%clk 0:02:59.6]} 1... Nf6 {[%clk 0:03:00.3]} 2. g3 {[%clk 0:02:59.5]}
2... g6 {[%clk 0:03:00.9]} 3. Bg2 {[%clk 0:02:59.4]} 3... Bg7 {[%clk 0:03:01.6]}
4. O-O {[%clk 0:02:59.5]} 4... O-O {[%clk 0:03:02.3]} 5. d4 {[%clk 0:02:59.6]}
5... d6 {[%clk 0:03:02.5]} 6. Nc3 {[%clk 0:02:58]} 6... d5 {[%clk 0:03:02.3]} 7.
Re1 {[%clk 0:02:56]} 7... Bg4 {[%clk 0:02:53.3]} 8. h3 {[%clk 0:02:54.7]} 8...
Bxf3 {[%clk 0:02:51.9]} 9. Bxf3 {[%clk 0:02:54.2]} 9... c6 {[%clk 0:02:52.3]}
10. e4 {[%clk 0:02:50.9]} 10... dxe4 {[%clk 0:02:53.2]} 11. Nxe4 {[%clk
0:02:51]} 11... Nxe4 {[%clk 0:02:53.8]} 12. Rxe4 {[%clk 0:02:51.6]} 12... e6
{[%clk 0:02:52]} 13. c3 {[%clk 0:02:51.4]} 13... Nd7 {[%clk 0:02:51.9]} 14. Re1
{[%clk 0:02:50]} 14... a5 {[%clk 0:02:51.5]} 15. a4 {[%clk 0:02:48.8]} 15... Qb6
{[%clk 0:02:50.8]} 16. Qc2 {[%clk 0:02:47]} 16... Rfe8 {[%clk 0:02:49.3]} 17.
Bg2 {[%clk 0:02:46.4]} 17... Nf6 {[%clk 0:02:46.9]} 18. Bd2 {[%clk 0:02:44.7]}
18... Nd5 {[%clk 0:02:46.4]} 19. h4 {[%clk 0:02:43.6]} 19... h5 {[%clk
0:02:44.2]} 20. Rad1 {[%clk 0:02:43.1]} 20... Qc7 {[%clk 0:02:38.5]} 21. Qb3
{[%clk 0:02:40]} 21... Rad8 {[%clk 0:02:35.7]} 22. Bg5 {[%clk 0:02:28.2]} 22...
Rc8 {[%clk 0:02:31.3]} 23. Re2 {[%clk 0:02:19.3]} 23... Qd7 {[%clk 0:02:28.5]}
24. Ra1 {[%clk 0:02:15.4]} 24... Ra8 {[%clk 0:02:24.2]} 25. Rae1 {[%clk
0:02:10.5]} 25... Rac8 {[%clk 0:02:18.4]} 26. Ra1 {[%clk 0:02:07.3]} 26... Ra8
{[%clk 0:02:18.3]} 27. Rae1 {[%clk 0:02:06.7]} 27... Rac8 {[%clk 0:02:18.2]} 28.
Ra1 {[%clk 0:02:06.5]} 1/2-1/2